bitfinex/quotes_SOLUSD_20241019
["timestamp","ask_amount","ask_price","bid_price","bid_amount"]
[1729354323706,6.66055513,156.01,155.98,6.4107]
[1729354325719,6.66055513,156.01,155.93,23.776884]
[1729354325920,6.66055513,156.01,155.97,6.4114]
[1729354326928,13.07075513,156.01,155.92,21.3583]
[1729354327102,13.07075513,156.01,155.96,6.4117]
[1729354328026,6.4103,156.0,155.95,6.4122]
[1729354328323,6.4107,155.99,155.92,21.3583]
[1729354328730,13.07066137,155.99,155.92,21.3583]
[1729354329301,6.4114,155.97,155.92,15.2774]
[1729354329539,23.776884,155.98,155.92,15.2774]
[1729354329827,6.4125,155.95,155.88,22.5966829]
[1729354330235,23.776884,155.98,155.88,22.5966829]
[1729354330402,6.4112,155.98,155.93,6.4127]
[1729354330602,13.07066137,155.99,155.94,6.4126]
[1729354330901,6.65996137,155.99,155.95,6.4122]
[1729354332118,6.65996137,155.99,155.8,6.65898751]
[1729354332119,23.776884,155.93,155.81,15.3681]
[1729354332504,6.4144,155.9,155.81,15.3681]
[1729354334103,6.4139,155.91,155.81,15.3681]
[1729354334328,20.0,155.93,155.81,15.3681]
[1729354334634,6.4139,155.91,155.81,15.3681]
[1729354336033,1.11583795,155.9,155.81,15.3681]
[1729354336527,6.4139,155.91,155.81,15.3681]
[1729354337531,6.4143,155.9,155.81,15.3681]
[1729354339132,13.06909721,155.9,155.81,15.3681]
[1729354340712,6.65479721,155.9,155.81,15.3681]
[1729354341048,1.11581318,155.93,155.82,23.776884]
[1729354341049,7.52891318,155.93,155.82,23.776884]
[1729354341210,6.4135,155.92,155.82,23.776884]
[1729354342429,6.4135,155.92,155.83,22.6716]
[1729354344032,6.414,155.91,155.83,22.6716]
[1729354346542,23.776884,155.92,155.83,22.6716]
[1729354346748,6.4147,155.9,155.83,22.6716]
[1729354347919,6.414,155.91,155.83,22.6716]
[1729354348429,6.65524017,155.93,155.83,22.6716]
[1729354348834,6.4136,155.92,155.83,22.6716]
[1729354350428,6.65524017,155.93,155.83,22.6716]
[1729354350634,6.4135,155.92,155.83,22.6716]
[1729354351345,6.4147,155.9,155.83,22.6716]
[1729354351560,6.65524017,155.93,155.83,22.6716]
[1729354351852,6.4139,155.92,155.83,22.6716]
[1729354352219,13.06834017,155.93,155.84,23.776884]
[1729354352535,6.65524017,155.93,155.84,23.776884]
[1729354352728,1.11553531,155.96,155.84,23.776884]
[1729354352951,13.07009893,155.95,155.84,23.776884]
[1729354353833,6.4127,155.94,155.84,23.776884]
[1729354360229,6.65739893,155.95,155.86,23.776884]
[1729354360735,13.06722014,155.98,155.86,23.776884]
[1729354360956,14.1823267,155.98,155.88,23.776884]
[1729354361261,13.06722014,155.98,155.88,23.776884]
[1729354361429,6.4115,155.97,155.88,23.776884]
[1729354361942,13.06732014,155.98,155.88,23.776884]
[1729354363053,6.65622014,155.98,155.9,23.776884]
[1729354363258,6.4086,156.04,155.93,16.593]
[1729354363456,6.4086,156.04,155.94,23.776884]
[1729354364249,6.4086,156.04,155.93,1.50267506]
[1729354364451,6.65630648,156.05,155.93,1.50267506]
[1729354364452,6.65630648,156.05,155.94,6.4425]
[1729354366263,6.65630648,156.05,155.95,23.776884]
[1729354371561,13.06460648,156.05,155.94,6.4425]
[1729354372268,30.185784,156.04,155.94,6.4425]
[1729354372640,6.4091,156.03,155.94,6.4425]
[1729354373041,23.776884,156.04,155.94,6.4425]
[1729354373042,6.4094,156.02,155.94,6.4425]
[1729354373243,6.4103,156.0,155.93,1.50267506]
[1729354375255,30.187884,155.99,155.93,1.50267506]
[1729354375861,6.4113,155.98,155.83,15.0032]
[1729354376362,6.4113,155.98,155.84,23.776884]
[1729354376567,6.6675287,156.01,155.84,23.776884]
[1729354376568,6.4118,155.97,155.85,15.0032]
[1729354377666,6.4119,155.96,155.85,15.0032]
[1729354379159,23.776884,156.0,155.85,15.0032]
[1729354379160,6.4115,155.97,155.85,15.0032]
[1729354379667,23.776884,156.0,155.86,23.776884]
[1729354379873,6.411,155.99,155.86,23.776884]
[1729354380065,23.776884,155.98,155.86,23.776884]
[1729354383357,6.4111,155.98,155.86,23.776884]
[1729354383876,7.52623534,155.98,155.86,23.776884]
[1729354384062,6.66574973,155.97,155.86,23.776884]
[1729354387672,6.66574973,155.97,155.85,15.0032]
[1729354387879,23.776884,155.96,155.85,15.0032]
[1729354389268,6.66574973,155.97,155.86,23.776884]
[1729354389684,6.66574973,155.97,155.87,6.6465]
[1729354390563,8.0419625,156.0,155.89,16.3332]
[1729354391366,8.0419625,156.0,155.9,23.776884]
[1729354391569,8.0419625,156.0,155.91,22.9797]
[1729354397987,23.776884,155.99,155.91,16.3332]
[1729354398180,45.310284,155.99,155.87,22.9797]
[1729354398491,30.188384,155.97,155.87,22.9797]
[1729354398689,23.776884,155.97,155.87,16.3332]
[1729354398897,6.4124,155.95,155.83,22.9797]
[1729354399074,23.776884,155.94,155.83,22.9797]
[1729354399390,30.189984,155.94,155.83,22.9797]
[1729354400964,23.776884,155.94,155.83,22.9797]
[1729354401181,23.776884,155.95,155.83,22.9797]
[1729354403601,6.4113,155.98,155.84,23.776884]
[1729354403801,23.776884,155.97,155.84,23.776884]
[1729354404993,21.5334,155.99,155.84,23.776884]
[1729354405781,14.4525625,156.0,155.86,23.776884]
[1729354405782,8.0419625,156.0,155.86,23.776884]
[1729354406182,14.4522625,156.0,155.86,23.776884]
[1729354406502,8.0419625,156.0,155.85,15.2827]
[1729354406699,6.4118,155.97,155.85,15.2827]
[1729354407068,21.5021,155.97,155.85,15.2827]
[1729354407297,23.776884,155.96,155.85,15.2827]
[1729354407886,36.85380738,155.96,155.85,15.2827]
[1729354408082,43.20530738,155.96,155.85,15.2827]
[1729354408891,36.79340738,155.96,155.85,15.2827]
[1729354409078,23.776884,155.94,155.85,15.2827]
[1729354418111,6.66491232,155.93,155.85,15.2827]
[1729354418906,23.776884,155.92,155.82,15.2827]
[1729354419083,30.190684,155.92,155.82,15.2827]
[1729354419997,23.776884,155.92,155.82,15.2827]
[1729354420194,30.190384,155.92,155.82,15.2827]
[1729354421403,23.776884,155.92,155.82,15.2827]
[1729354421605,6.66491232,155.93,155.82,15.2827]
[1729354433324,23.776884,155.92,155.82,15.2827]
[1729354434735,22.276884,155.92,155.82,15.2827]
[1729354439639,6.3515,155.96,155.82,15.2827]
[1729354439823,23.776884,155.95,155.82,15.2827]
[1729354440025,23.776884,155.93,155.82,15.2827]
[1729354444929,23.776884,155.91,155.82,15.2827]
[1729354445132,23.776884,155.93,155.82,15.2827]
[1729354445739,30.190084,155.93,155.82,15.2827]
[1729354450316,23.776884,155.93,155.82,15.2827]
[1729354450630,15.0903,155.92,155.82,15.2827]
[1729354450945,6.65917308,155.92,155.82,15.2827]
[1729354459067,23.776884,155.94,155.82,15.2827]
[1729354459568,6.65330357,155.92,155.82,15.2827]
[1729354460156,6.414,155.91,155.82,15.2827]
[1729354460341,23.776884,155.91,155.82,15.2827]
[1729354462566,23.776884,155.89,155.78,15.7246]
[1729354463250,23.776884,155.87,155.78,15.7246]
[1729354468362,6.1336,155.9,155.78,15.7246]
[1729354469640,23.776884,155.89,155.78,15.7246]
[1729354470163,6.65503272,155.9,155.8,22.8125]
[1729354470369,1.11442679,155.93,155.81,23.776884]
[1729354470571,6.65554952,155.93,155.81,23.776884]
[1729354472154,23.776884,155.92,155.8,22.8125]
[1729354477768,23.776884,155.92,155.81,23.776884]
[1729354477956,6.65554952,155.93,155.81,23.776884]
[1729354478462,6.65554952,155.93,155.82,16.4953]
[1729354480676,23.776884,155.94,155.82,16.4953]
[1729354486069,30.189984,155.94,155.82,16.4953]
[1729354486959,23.776884,155.94,155.82,16.4953]
[1729354487252,23.776884,155.92,155.82,16.4953]
[1729354488376,23.776884,155.93,155.82,16.4953]
[1729354489875,23.776884,155.94,155.82,16.4953]
[1729354490091,23.776884,155.92,155.82,16.4953]
[1729354491191,30.43762954,155.92,155.82,16.4953]
[1729354495601,6.66074554,155.92,155.82,16.4953]
[1729354495774,23.776884,155.94,155.82,16.4953]
[1729354501009,6.4132,155.93,155.82,16.4953]
[1729354501299,30.69984869,155.94,155.82,16.4953]
[1729354502297,6.92296469,155.94,155.82,16.4953]
[1729354502594,21.74942678,155.95,155.82,16.4953]
[1729354503696,23.776884,155.94,155.82,16.4953]
[1729354506397,6.65919695,155.93,155.82,16.4953]
[1729354506593,23.776884,155.92,155.82,16.4953]
[1729354517085,23.776884,155.9,155.82,16.4953]
[1729354528898,7.2369536,155.94,155.82,16.4953]
[1729354529084,6.1228,155.94,155.82,16.4953]
[1729354529291,6.65670723,155.93,155.82,16.4953]
[1729354530398,23.776884,155.92,155.82,16.4953]
[1729354542330,6.65670723,155.93,155.82,16.4953]
[1729354543503,23.776884,155.94,155.85,15.8162]
[1729354543831,6.92158586,155.95,155.85,15.8162]
[1729354549524,6.92158586,155.95,155.86,23.776884]
[1729354550313,6.921586,156.0,155.88,23.776884]
[1729354550626,6.65708103,156.0,155.88,23.776884]
[1729354552712,23.776884,156.02,155.9,23.776884]
[1729354552913,30.433241,156.02,155.9,23.776884]
[1729354557330,6.656357,156.02,155.9,23.776884]
[1729354561341,23.776884,156.01,155.9,23.776884]
[1729354561634,30.34007269,156.01,155.9,23.776884]
[1729354563039,6.56318869,156.01,155.9,23.776884]
[1729354563531,23.776884,156.0,155.89,15.4409]
[1729354564046,30.43034793,156.0,155.89,15.4409]
[1729354565532,36.640584,155.98,155.89,15.4409]
[1729354565737,23.776884,155.96,155.89,15.4409]
[1729354566042,30.229384,155.98,155.89,15.4409]
[1729354567441,36.640484,155.98,155.89,15.4409]
[1729354568329,6.65346393,156.0,155.9,23.776884]
[1729354568528,6.65346393,156.0,155.89,15.4409]
[1729354571349,23.776884,155.99,155.89,15.4409]
[1729354572656,30.188484,155.97,155.89,15.4409]
[1729354573854,21.5428,155.98,155.89,15.4409]
[1729354574055,23.776884,156.0,155.89,15.4409]
[1729354574355,30.4270843,156.0,155.89,15.4409]
[1729354575840,36.8372843,156.0,155.89,15.4409]
[1729354576251,30.4270843,156.0,155.89,15.4409]
[1729354578455,6.6502003,156.0,155.9,23.776884]
[1729354581445,6.56318869,156.01,155.91,6.0365]
[1729354582659,6.56318869,156.01,155.93,15.0387]
[1729354588752,23.776884,156.03,155.93,15.0387]
[1729354589855,21.5004,156.01,155.89,16.3137]
[1729354590059,23.776884,156.0,155.89,16.3137]
[1729354591267,30.187384,156.0,155.89,16.3137]
[1729354591848,6.4108,155.99,155.89,16.3137]
[1729354592055,13.05581277,155.99,155.89,16.3137]
[1729354592677,6.64501277,155.99,155.89,16.3137]
[1729354592845,6.64501277,155.99,155.9,23.776884]
[1729354593264,15.0903,156.01,155.9,23.776884]
[1729354593649,21.73211068,156.01,155.9,23.776884]
[1729354594066,6.64181068,156.01,155.9,23.776884]
[1729354595045,13.05191068,156.01,155.9,23.776884]
[1729354595969,6.64181068,156.01,155.9,23.776884]
[1729354598363,13.05171068,156.01,155.9,23.776884]
[1729354600382,6.64181068,156.01,155.9,23.776884]
[1729354618770,23.776884,156.01,155.9,23.776884]
[1729354618973,23.776884,156.02,155.9,23.776884]
[1729354619371,30.186384,156.02,155.9,23.776884]
[1729354630000,23.776884,156.02,155.9,23.776884]
[1729354630167,23.776884,156.02,155.92,15.028]
[1729354634399,30.186584,156.02,155.92,15.028]
[1729354634696,6.4098,156.01,155.92,15.028]
[1729354635169,30.186284,156.02,155.92,15.028]
[1729354647302,23.776884,156.02,155.92,15.028]
[1729354663299,6.61198805,156.03,155.93,23.776884]
[1729354666790,8.14391068,156.05,155.93,23.776884]
[1729354666998,14.55211068,156.05,155.93,23.776884]
[1729354667707,6.4091,156.03,155.92,15.028]
[1729354667907,23.776884,156.02,155.92,15.028]
[1729354668520,6.4096,156.02,155.92,15.028]
[1729354670722,23.776884,156.03,155.92,15.028]
[1729354670917,23.776884,156.04,155.92,15.028]
[1729354671218,23.776884,156.0,155.92,15.028]
[1729354671416,30.06459512,156.0,155.92,15.028]
[1729354675918,6.28771112,156.0,155.92,15.028]
[1729354678228,12.7166,156.02,155.92,15.028]
[1729354679098,13.82895886,156.02,155.92,15.028]
[1729354679527,12.7166,156.02,155.92,15.028]
[1729354687928,6.4104,156.0,155.92,15.028]
[1729354690419,30.186784,156.01,155.92,15.028]
[1729354691305,23.776884,156.01,155.92,15.028]
[1729354691617,6.4102,156.0,155.92,15.028]
[1729354691930,6.19651861,156.02,155.92,15.028]
[1729354694126,6.19651861,156.02,155.91,6.0122]
[1729354694127,6.19651861,156.02,155.95,23.776884]
[1729354694316,6.19651861,156.02,155.96,15.8964]
[1729354694518,6.5569,156.1,155.98,6.5743]
[1729354694714,6.63874943,156.09,156.0,15.8964]
[1729354695121,6.4056,156.12,156.0,15.8964]
[1729354695333,14.78238112,156.13,156.01,23.776884]
[1729354695540,14.5488,156.13,156.01,23.776884]
[1729354703545,6.4059,156.11,156.01,23.776884]
[1729354703751,6.4053,156.12,156.01,23.776884]
[1729354704625,8.1439,156.13,156.01,23.776884]
[1729354704825,14.5488,156.13,156.01,23.776884]
[1729354705248,13.1985445,156.15,156.01,23.776884]
[1729354705453,6.6416445,156.15,156.04,16.3961]
[1729354705651,7.51493445,156.17,156.05,23.776884]
[1729354706221,6.4033,156.17,156.05,23.776884]
[1729354706826,6.4037,156.16,156.05,23.776884]
[1729354707552,13.04757556,156.18,156.07,23.776884]
[1729354707757,15.56973914,156.19,156.07,23.776884]
[1729354707927,15.56973914,156.19,156.08,15.5337]
[1729354708328,9.07193914,156.19,156.09,23.776884]
[1729354710534,9.07193914,156.19,156.11,23.776884]
[1729354712732,9.07193914,156.19,156.1,6.4215]
[1729354714432,15.47443914,156.19,156.1,6.4215]
[1729354714628,6.4028,156.18,156.1,6.4215]
[1729354715851,9.07193914,156.19,156.1,6.4215]
[1729354716055,6.4032,156.18,156.1,6.4215]
[1729354719345,23.776884,156.18,156.08,15.5337]
[1729354719657,6.4057,156.12,156.04,15.5337]
[1729354720869,6.4049,156.13,156.04,15.5337]
[1729354722148,39.786684,156.16,156.04,15.5337]
[1729354722149,6.4045,156.14,156.04,15.5337]
[1729354722350,23.776884,156.14,156.04,15.5337]
[1729354722855,6.4046,156.14,156.04,15.5337]
[1729354723975,6.4051,156.13,156.04,15.5337]
[1729354724356,6.4054,156.12,156.04,15.5337]
[1729354724564,16.0102,156.15,156.04,15.5337]
[1729354724769,6.4055,156.12,156.04,15.5337]
[1729354725271,6.4062,156.1,156.04,15.5337]
[1729354726764,6.4058,156.11,156.04,15.5337]
[1729354728572,6.4061,156.11,156.04,15.5337]
[1729354730065,6.67562143,156.13,156.04,15.5337]
[1729354730269,6.4041,156.15,156.04,15.5337]
[1729354730578,13.07828893,156.15,156.04,15.5337]
[1729354731872,23.776884,156.14,156.04,15.5337]
[1729354732759,23.776884,156.12,156.04,15.5337]
[1729354738561,6.4058,156.11,156.04,15.5337]
[1729354738764,23.776884,156.12,156.04,15.5337]
[1729354740263,6.4045,156.14,156.04,15.5337]
[1729354740471,23.776884,156.14,156.04,15.5337]
[1729354746265,14.5569,156.17,156.04,15.5337]
[1729354746475,23.776884,156.16,156.04,15.5337]
[1729354746886,30.180484,156.16,156.04,15.5337]
[1729354748966,23.776884,156.13,156.04,15.5337]
[1729354749291,6.4047,156.14,156.04,15.5337]
[1729354749292,23.776884,156.14,156.04,15.5337]
[1729354753587,6.4038,156.16,156.04,15.5337]
[1729354753771,23.776884,156.15,156.04,15.5337]
[1729354754593,23.776884,156.16,156.04,15.5337]
[1729354758597,8.1439,156.17,156.06,6.0053]
[1729354758773,23.776884,156.16,156.06,6.0053]
[1729354761066,23.776884,156.17,156.07,15.6836]
[1729354762698,23.776884,156.18,156.07,15.6836]
[1729354770202,23.776884,156.16,156.07,15.6836]
[1729354797733,23.776884,156.17,156.07,15.6836]
[1729354801539,23.776884,156.18,156.07,15.6836]
[1729354801834,9.07193914,156.19,156.07,15.6836]
[1729354803012,23.776884,156.18,156.07,15.6836]
[1729354808431,9.07193914,156.19,156.08,23.776884]
[1729354808637,9.07193914,156.19,156.09,16.5853]
[1729354808949,9.07193914,156.19,156.1,6.2031]
[1729354813518,23.776884,156.22,156.1,6.2031]
[1729354822046,19.26,156.21,156.1,6.2031]
[1729354822231,23.776884,156.22,156.1,6.2031]
[1729354823331,6.67718016,156.23,156.11,15.3562]
[1729354823529,1.11259143,156.25,156.14,23.776884]
[1729354823747,0.6400829,156.28,156.16,6.3531]
[1729354824044,0.6400829,156.28,156.17,23.776884]
[1729354824858,0.1400829,156.28,156.17,23.776884]
[1729354825059,0.1400829,156.28,156.19,23.776884]
[1729354825342,0.1400829,156.28,156.18,15.3562]
[1729354829846,0.1400829,156.28,156.19,6.1873]
[1729354830031,0.1400829,156.28,156.2,16.2527]
[1729354830226,0.1400829,156.28,156.21,23.776884]
[1729354835657,0.1400829,156.28,156.2,16.2527]
[1729354861369,6.5389829,156.28,156.2,16.2527]
[1729354861675,0.1400829,156.28,156.22,15.0363]
[1729354862746,0.1400829,156.28,156.23,23.776884]
[1729354867165,0.1400829,156.28,156.25,23.776884]
[1729354867372,0.1400829,156.28,156.27,23.776884]
[1729354867544,20.39109559,156.41,156.27,38.971184]
[1729354868274,20.39109559,156.41,156.29,23.776884]
[1729354869352,6.20389559,156.41,156.29,23.776884]
[1729354870148,6.20389559,156.41,156.3,15.1943]
[1729354870360,6.20389559,156.41,156.31,23.776884]
[1729354877181,7.0330829,156.43,156.31,23.776884]
[1729354877485,23.776884,156.42,156.31,23.776884]
[1729354883192,0.6400829,156.43,156.32,22.9042]
[1729354884289,0.6400829,156.43,156.33,23.776884]
[1729354889488,0.6400829,156.43,156.35,23.776884]
[1729354893395,0.6400829,156.43,156.34,16.4517]
[1729354898789,6.393,156.42,156.34,16.4517]
[1729354900078,7.0327829,156.43,156.34,16.4517]
[1729354900690,0.6400829,156.43,156.34,16.4517]
[1729354901881,7.0326829,156.43,156.34,16.4517]
[1729354906985,6.3934,156.42,156.34,16.4517]
[1729354907185,0.6400829,156.43,156.34,16.4517]
[1729354909112,0.6400829,156.43,156.32,6.4525]
[1729354909285,6.3934,156.41,156.32,6.4525]
[1729354911407,23.776884,156.42,156.32,6.4525]
[1729354911586,6.3935,156.41,156.32,6.4525]
[1729354912599,6.3937,156.41,156.32,6.4525]
[1729354913811,30.169984,156.42,156.32,6.4525]
[1729354914317,6.3931,156.42,156.32,6.4525]
[1729354918709,6.3934,156.41,156.32,6.4525]
[1729354921598,6.3947,156.38,156.3,22.48499744]
[1729354922825,6.3943,156.39,156.3,22.48499744]
[1729354925719,6.395,156.38,156.3,15.9461]
[1729354926242,6.3946,156.38,156.26,6.67211471]
[1729354926535,20.8538,156.4,156.27,21.9034]
[1729354926738,6.3949,156.38,156.27,21.9034]
[1729354928313,6.3949,156.38,156.28,23.776884]
[1729354929832,6.3953,156.37,156.27,21.9034]
[1729354930133,23.776884,156.39,156.27,21.9034]
[1729354930134,6.3955,156.36,156.27,21.9034]
[1729354931955,7.38634633,156.36,156.27,15.8932]
[1729354932231,6.3966,156.34,156.27,15.8932]
[1729354933420,6.3969,156.33,156.27,15.8932]
[1729354934138,6.3969,156.33,156.23,21.9034]
[1729354934545,6.3977,156.31,156.23,21.9034]
[1729354934741,6.3971,156.33,156.23,21.9034]
[1729354934915,6.3972,156.32,156.23,21.9034]
[1729354939142,6.3974,156.32,156.23,21.9034]
[1729354940924,30.0,156.3,156.23,21.9034]
[1729354942129,30.0,156.3,156.24,23.776884]
[1729354943038,15.31003373,156.36,156.24,23.776884]
[1729354943242,7.9236874,156.36,156.24,23.776884]
[1729354952245,7.9236874,156.36,156.26,23.776884]
[1729354953950,7.9236874,156.36,156.25,15.9094]
[1729354956854,6.3959,156.35,156.25,15.9094]
[1729354960558,14.59623345,156.36,156.25,15.9094]
[1729354960736,6.3966,156.34,156.25,15.9094]
[1729354961952,30.172784,156.35,156.25,15.9094]
[1729354962640,23.776884,156.35,156.25,15.9094]
[1729354962848,6.3963,156.34,156.25,15.9094]
[1729354964459,30.172784,156.35,156.25,15.9094]
[1729354965754,23.776884,156.35,156.25,15.9094]
[1729354965964,6.3963,156.34,156.25,15.9094]
[1729354968960,42.986884,156.35,156.25,15.9094]
[1729354969254,23.776884,156.33,156.25,15.9094]
[1729354971061,6.3959,156.35,156.25,15.9094]
[1729354971247,23.776884,156.34,156.25,15.9094]
[1729354971960,23.776884,156.35,156.25,15.9094]
[1729354973369,42.986884,156.35,156.25,15.9094]
[1729354973537,23.776884,156.35,156.25,15.9094]
[1729354977065,14.59623345,156.36,156.25,15.9094]
[1729354977766,7.9236874,156.36,156.25,15.9094]
[1729354978672,7.9236874,156.36,156.26,23.776884]
[1729354979173,7.9236874,156.36,156.27,6.0242]
[1729354985248,30.172784,156.35,156.27,6.0242]
[1729354985461,30.172784,156.35,156.25,15.9094]
[1729354986072,23.776884,156.35,156.25,15.9094]
[1729354987671,6.3974,156.32,156.25,15.9094]
[1729354987976,23.776884,156.32,156.25,15.9094]
[1729354988556,30.173984,156.32,156.23,6.0345]
[1729354989876,6.3975,156.31,156.23,6.0345]
[1729354990052,23.776884,156.32,156.23,6.0345]
[1729354990254,6.3976,156.31,156.22,7.3207003]
[1729354990575,23.776884,156.3,156.21,16.3527]
[1729354991165,30.174784,156.3,156.21,16.3527]
[1729354991567,23.776884,156.28,156.21,16.3527]
[1729354993177,30.0,156.27,156.21,16.3527]
[1729354993770,30.0,156.27,156.19,6.5247]
[1729354994877,23.776884,156.26,156.17,16.3527]
[1729354998665,30.176584,156.26,156.17,16.3527]
[1729354999179,23.776884,156.24,156.17,16.3527]
[1729354999764,23.776884,156.24,156.14,6.67596064]
[1729354999765,23.776884,156.22,156.14,6.67596064]
[1729354999965,23.776884,156.22,156.11,16.3527]
[1729355000170,23.776884,156.2,156.11,16.3527]
[1729355000360,42.986884,156.2,156.11,16.3527]
[1729355000683,23.776884,156.18,156.11,16.3527]
[1729355001556,30.0,156.17,156.11,16.3527]
[1729355001760,23.776884,156.23,156.11,16.3527]
[1729355002155,30.177884,156.23,156.11,16.3527]
[1729355002469,23.776884,156.21,156.11,16.3527]
[1729355011862,6.67895,156.22,156.11,16.3527]
[1729355013586,23.776884,156.22,156.11,16.3527]
[1729355018675,49.388184,156.22,156.11,16.3527]
[1729355019575,23.776884,156.19,156.11,16.3527]
[1729355021597,30.179584,156.19,156.11,16.3527]
[1729355022666,23.776884,156.19,156.11,16.3527]
[1729355022896,19.21,156.23,156.11,16.3527]
[1729355023079,23.776884,156.21,156.11,16.3527]
[1729355023785,19.21,156.22,156.11,16.3527]
[1729355023978,41.37417504,156.24,156.12,23.776884]
[1729355024295,8.82369888,156.24,156.15,15.8792]
[1729355028693,8.82369888,156.24,156.16,23.776884]
[1729355028884,23.776884,156.28,156.16,23.776884]
[1729355031282,42.986884,156.28,156.16,23.776884]
[1729355032789,25.6096,156.26,156.15,15.8792]
[1729355033998,42.986884,156.25,156.15,15.8792]
[1729355036102,49.387084,156.25,156.15,15.8792]
[1729355040103,25.6108,156.24,156.15,15.8792]
[1729355040883,19.72936262,156.29,156.15,15.8792]
[1729355041087,8.2839,156.29,156.17,6.4958]
[1729355041489,6.3996,156.26,156.17,6.4958]
[1729355042002,25.6096,156.26,156.17,6.4958]
[1729355046205,25.6104,156.24,156.15,15.8792]
[1729355046797,19.21,156.24,156.15,15.8792]
[1729355048401,49.386884,156.25,156.15,15.8792]
[1729355049202,42.986884,156.25,156.15,15.8792]
[1729355050106,23.776884,156.25,156.15,15.8792]
[1729355050316,19.21,156.26,156.15,15.8792]
[1729355050689,6.3991,156.27,156.15,15.8792]
[1729355051410,25.6091,156.27,156.15,15.8792]
[1729355054910,6.3991,156.27,156.15,15.8792]
[1729355055115,30.175684,156.28,156.17,6.1355]
[1729355055320,23.776884,156.28,156.17,6.1355]
[1729355055525,6.2271,156.3,156.18,39.408184]
[1729355055893,6.3976,156.31,156.18,39.408184]
[1729355056119,19.21,156.3,156.18,39.408184]
[1729355057215,6.3987,156.29,156.18,39.408184]
[1729355058294,6.3991,156.28,156.18,15.6313]
[1729355058711,25.6091,156.28,156.18,15.6313]
[1729355059622,6.3991,156.28,156.18,15.6313]
[1729355060619,25.6091,156.28,156.18,15.6313]
[1729355070055,42.986884,156.27,156.18,15.6313]
[1729355070438,25.6095,156.26,156.18,15.6313]
[1729355072146,6.4,156.25,156.18,15.6313]
[1729355075036,25.61,156.25,156.18,15.6313]
[1729355075208,6.4008,156.23,156.14,16.1801]
[1729355076228,19.21,156.23,156.14,16.1801]
[1729355076422,25.6115,156.22,156.14,16.1801]
[1729355077228,6.4017,156.21,156.14,16.1801]
[1729355080314,25.6117,156.21,156.14,16.1801]
[1729355080523,19.21,156.21,156.14,16.1801]
[1729355080718,6.402,156.2,156.14,16.1801]
[1729355081930,19.21,156.19,156.14,16.1801]
[1729355082131,6.402,156.2,156.14,16.1801]
[1729355084342,19.21,156.2,156.1,15.8236]
[1729355084529,19.21,156.16,156.1,15.8236]
[1729355085039,25.6137,156.16,156.1,15.8236]
[1729355085927,30.0,156.15,156.1,15.8236]
[1729355088351,30.0,156.15,156.06,15.8236]
[1729355089350,55.6142,156.15,156.06,15.8236]
[1729355092234,25.6142,156.15,156.06,15.8236]
[1729355099668,19.21,156.16,156.06,15.8236]
[1729355099873,25.614,156.15,156.06,15.8236]
[1729355101054,6.4008,156.23,156.11,6.0874]
[1729355101250,12.9236,156.24,156.11,6.0874]
[1729355101558,6.4004,156.24,156.11,6.0874]
[1729355101758,6.67842187,156.25,156.13,23.776884]
[1729355102138,6.67842187,156.25,156.14,22.3231]
[1729355102561,6.3991,156.27,156.14,22.3231]
[1729355103148,19.21,156.27,156.15,23.776884]
[1729355103463,19.21,156.27,156.16,16.2357]
[1729355104665,32.28500273,156.28,156.16,16.2357]
[1729355104962,25.88620273,156.28,156.16,16.2357]
[1729355105148,23.776884,156.27,156.16,16.2357]
[1729355106259,25.88620273,156.28,156.16,16.2357]
[1729355106972,21.6360634,156.32,156.19,23.776884]
[1729355107146,15.2389634,156.32,156.19,23.776884]